[Event "9th Floripa Open 2023"]
[Site "Florianopolis"]
[Date "2023.01.27"]
[Round "7.6"]
[White "Barbosa, Evandro Amorim"]
[Black "Coro, Lucas"]
[Result "1-0"]
[ECO "B47"]
[WhiteElo "2482"]
[BlackElo "2272"]
[Annotator "TA"]
[PlyCount "99"]
[EventDate "2023.01.23"]
[EventType "swiss"]
[EventCountry "BRA"]
[SourceTitle "playchess.com"]
[Source "ChessBase"]
[SourceQuality "1"]
[TimeControl "5400+30"]

{[%evp 11,99,30,32,20,24,27,15,16,30,22,45,30,33,37,39,36,27,26,36,34,41,32,52,55,147,137,150,146,138,134,137,143,250,264,256,253,248,253,266,292,331,320,303,268,307,300,307,270,296,267,312,309,291,262,266,273,441,251,254,227,350,354,366,373,414,312,312,293,300,289,297,249,466,459,400,401,381,325,303,287,413,181,189,9,686,662,781,773,868,831]} 1. e4 {[%emt 0:04:56]} c5 {[%emt 0:00:17]} 2. Nf3 {[%emt 0:00:09]} e6 {[%emt 0:00:37]} 3. d4 {[%emt 0:00:20]} cxd4 {[%emt 0:00:06]} 4. Nxd4 {[%emt 0:00:05]} Nc6 {[%emt 0:00:43]} 5. Nc3 {[%emt 0:00:17]} a6 {[%emt 0:00:08]} 6. Be2 {[%emt 0:00:52]} Qc7 {[%emt 0:00:28]} 7. Nxc6 {[%emt 0:01:01] B47: Sicilian: Taimanov: 5 Nc3 Qc7 6 f4, 6 g3 and 6 Be2.} bxc6 {[%emt 0:00:08]} 8. Qd3 {[%emt 0:00:07]} Nf6 {[%emt 0:02:14]} 9. Qg3 {[%emt 0:00:32] The position is equal.} Qxg3 {[%emt 0:00:47]} 10. hxg3 {[%emt 0:00:10]} (10. fxg3 d5 $11) 10... Bb4 {[%emt 0:06:04]} 11. Bd2 {[%emt 0:02:21]} d5 {[%emt 0:01:25]} 12. g4 {[%emt 0:04:09]} O-O {[%emt 0:06:41]} (12... Nxe4 $2 13. Nxe4 Bxd2+ 14. Nxd2 $18) 13. f3 {[%emt 0:04:24]} h6 {[%emt 0:03:40]} 14. O-O-O {[%emt 0:06:19]} a5 {[%emt 0:11:36] [#]} 15. a3 $146 {[%emt 0:03:45]} ({Predecessor:} 15. g5 hxg5 16. Bxg5 Nd7 17. Na4 Bd6 18. Be3 f5 19. exd5 exd5 20. Bc4 Bb7 21. Kb1 {½-½ Miettinen,K (2406)-Tauriainen,M (2375) FIN-ch70 email 2019}) 15... Bd6 {[%emt 0:04:30]} 16. Rh3 {[%emt 0:22:04]} (16. f4 $5 {[%cal Re4e5]} d4 17. e5 (17. Be3 dxc3 18. Rxd6 Nxe4 $15) 17... dxc3 18. Bxc3 $14) 16... e5 {[%emt 0:15:19]} 17. Rh2 {[%emt 0:02:58] [#] Strongly threatening g5.} Be6 {[%emt 0:19:28]} ({Better is} 17... d4 $14) 18. g5 $16 {[%emt 0:01:05]} Nh7 {[%emt 0:02:50]} (18... hxg5 $2 19. Rdh1 (19. Bxg5 Rfb8 $16) 19... g6 20. Bxg5) 19. gxh6 {[%emt 0:01:16]} g6 {[%emt 0:00:07]} 20. exd5 {[%emt 0:06:15]} cxd5 {[%emt 0:00:09]} 21. Nb5 {[%emt 0:00:23]} Bc5 {[%emt 0:04:54]} (21... Bb8 $16 22. Rdh1 f5) 22. Nc7 $18 {[%emt 0:03:03]} Ra7 {[%emt 0:00:24]} 23. Nxe6 {[%emt 0:00:08]} fxe6 {[%emt 0:00:06]} 24. Bd3 {[%emt 0:00:45]} Kf7 {[%emt 0:02:08]} 25. Rh4 {[%emt 0:00:16]} Bd4 {[%emt 0:04:57]} 26. c3 {[%emt 0:04:40]} Bc5 {[%emt 0:01:33]} 27. Rdh1 {[%emt 0:00:26]} Rc7 {[%emt 0:02:25]} 28. R1h3 {[%emt 0:02:28]} Nf6 {[%emt 0:01:07]} 29. Kd1 {[%emt 0:04:59]} Rh8 {[%emt 0:01:12]} 30. Ke2 {[%emt 0:00:53] Rg3 would be deadly.} Bd6 {[%emt 0:00:53]} 31. Ra4 {[%emt 0:04:54]} Rb7 {[%emt 0:01:39]} 32. Bc1 {[%emt 0:01:06]} Bc7 {[%emt 0:00:25]} 33. Bc2 {[%emt 0:02:22]} Rbb8 $2 {[%emt 0:01:56]} (33... Rhb8 {is a better defense.} 34. h7 Rh8) 34. Rg3 {[%emt 0:02:27]} (34. Bxg6+ $142 Ke7 35. h7) 34... Rbg8 {[%emt 0:00:32]} 35. b4 {[%emt 0:01:29]} e4 {[%emt 0:03:21]} (35... Nh5 $142 36. Rg4 Nf4+ 37. Bxf4 exf4 38. bxa5 Rxh6) 36. Rh3 {[%emt 0:00:16]} g5 {[%emt 0:02:10]} 37. fxe4 {[%emt 0:00:37]} (37. bxa5 g4 38. fxg4 Nxg4 $18) 37... dxe4 {[%emt 0:01:03]} 38. c4 {[%emt 0:05:54]} Bf4 {[%emt 0:00:30]} 39. Bb2 {[%emt 0:00:46]} Rd8 {[%emt 0:00:22] [#] Threatens to win with ...Rd2+.} 40. Bc3 {[%emt 0:00:25] Wards off Rd2+. This pair of bishops is nice.} (40. bxa5 $2 Rd2+ 41. Kf1 Rxc2 42. Bxf6 Kxf6 $19) 40... g4 {[%emt 0:00:57]} 41. Rh1 {[%emt 0:00:09]} Rxh6 $2 {[%emt 0:00:21]} (41... axb4 42. axb4 Rxh6 43. Rxh6 (43. Rf1 e5 $16) 43... Bxh6) 42. Rxh6 {[%emt 0:00:32]} Bxh6 {[%emt 0:00:09]} 43. Rxa5 {[%emt 0:00:25]} Bf4 {[%emt 0:00:22]} 44. Ra7+ {[%emt 0:01:04]} Kg6 {[%emt 0:00:17]} 45. Re7 {[%emt 0:01:33]} e5 {[%emt 0:00:06]} (45... Kf5 {was necessary.} 46. b5 Be5 47. Bxe5 Kxe5) 46. b5 {[%emt 0:01:00]} (46. Bxe5 Rd2+ 47. Ke1 Bg5 $16) (46. Re6 $142) 46... Nh5 {[%emt 0:00:28]} 47. Rxe5 $2 {[%emt 0:04:26]} (47. Bxe5 Rd2+ 48. Kf1 Rxc2 49. Bxf4 Nxf4 50. Rxe4 Kf5 $17) (47. Bxe4+ Kf6 48. Ba5 Ng3+ 49. Ke1 Kxe7 $19) (47. Be1 $18 Kf5 48. b6 Ng3+ 49. Bxg3 (49. Kf2 $2 Rh8 $19) 49... Rd2+ 50. Ke1 Rxc2 51. Rf7+ {[%mdl 64] Skewer, Deflection} (51. Bxf4 exf4 52. b7 Rb2 $14) 51... Ke6 52. Bxf4 exf4 53. Rxf4) 47... Ng3+ {[%emt 0:01:11][%mdl 8192]} (47... Bxe5 $11 48. Bxe5 Kf5) 48. Ke1 {[%emt 0:00:54] White is clearly winning.} ({Less strong is} 48. Kf2 Bxe5 49. Bxe5 Kf5 $16) 48... Bxe5 {[%emt 0:01:09]} 49. Bxe5 {[%emt 0:00:03]} Nf5 {[%emt 0:00:24]} 50. b6 {[%emt 0:00:23] Weighted Error Value: White=0.26 (precise) /Black=0.48} ({Inferior is} 50. Bxe4 Re8 51. Ke2 (51. Bxf5+ $2 Kxf5 52. Kd2 Kxe5 $19) 51... Rxe5 $17) 1-0

[Event "9th Floripa Open 2023"]
[Site "Florianopolis"]
[Date "2023.01.27"]
[Round "7.7"]
[White "Cuenca Jimenez, Jose Fernando"]
[Black "Pires, Marcos Vinicius Tors"]
[Result "1-0"]
[ECO "E04"]
[WhiteElo "2545"]
[BlackElo "2238"]
[Annotator "TA"]
[PlyCount "131"]
[EventDate "2023.01.23"]
[EventType "swiss"]
[EventCountry "BRA"]
[SourceTitle "playchess.com"]
[Source "ChessBase"]
[SourceQuality "1"]
[TimeControl "5400+30"]

{[%evp 10,131,11,0,4,7,10,8,17,-9,-9,-22,0,0,0,0,0,0,34,28,21,32,20,21,17,0,-1,-35,-42,-64,-58,-88,-92,-112,-110,-101,-112,-114,-88,-139,-30,-39,-36,-39,-12,-6,-12,-12,-12,-20,27,-16,13,24,16,9,28,9,18,0,0,0,0,0,0,0,0,0,0,0,0,0,0,0,0,0,0,0,0,0,0,0,0,0,0,0,0,0,0,0,0,0,0,0,0,-27,0,0,580,552,540,518,1140,592,29963,29966,29965,29967,29967,29968,29968,29969,29969,29971,29970,29972,29974,29975,29974,29975,29975,29974,29972,29969]} 1. d4 {[%emt 0:02:36]} d5 {[%emt 0:00:28]} 2. c4 {[%emt 0:00:21]} e6 {[%emt 0:00:23]} 3. Nf3 {[%emt 0:00:11]} Nf6 {[%emt 0:00:23]} 4. g3 {[%emt 0:00:28]} dxc4 {[%emt 0:01:09]} 5. Bg2 {[%emt 0:00:40]} c5 {[%emt 0:00:59]} 6. Qa4+ {[%emt 0:07:46]} Bd7 {[%emt 0:04:45] E04: Open Catalan: 5 Nf3.} 7. Qxc4 {[%emt 0:00:21]} b5 {[%emt 0:01:37]} 8. Qc2 {[%emt 0:02:52] White wants to play Ne5.} Na6 {[%emt 0:02:03] The position is equal.} 9. Nc3 {[%emt 0:06:18]} Rc8 {[%emt 0:01:55] aiming for ...cxd4.} 10. a3 {[%emt 0:01:18] [#]} Be7 $146 {[%emt 0:02:13]} (10... Bc6 $5 {[%cal Rc5d4]} 11. d5 Nxd5 $11) ({Predecessor:} 10... Bc6 11. dxc5 Bxc5 12. O-O Qb6 13. e3 O-O 14. Bd2 Qb7 15. Ne1 Nb8 16. b4 Be7 {0-1 Sharevich,A (2305)-Sudakova,I (2366) Bykova Memorial-A (Women) 2005 (4)}) 11. dxc5 {[%emt 0:05:01]} Nxc5 {[%emt 0:01:28]} 12. Ne5 {[%emt 0:00:13]} O-O {[%emt 0:02:45]} 13. O-O {[%emt 0:09:15]} Na4 {[%emt 0:12:32]} 14. Rd1 {[%emt 0:11:30]} Nxc3 {[%emt 0:07:17]} 15. bxc3 {[%emt 0:02:18]} Rc7 $1 {[%emt 0:12:23]} 16. Be3 {[%emt 0:14:42]} Qc8 {[%emt 0:08:10]} 17. Qb2 {[%emt 0:00:35]} Rd8 {[%emt 0:05:42]} 18. Bd4 {[%emt 0:07:38]} Be8 {[%emt 0:01:22]} 19. Nd3 {[%emt 0:00:23]} Nd5 {[%emt 0:05:26][%cal Rd5c3]} 20. Be5 {[%emt 0:04:53]} Rc4 {[%emt 0:02:34][%cal Rd5c3]} 21. Rdc1 {[%emt 0:00:07]} Nb6 {[%emt 0:04:10]} 22. Qb3 {[%emt 0:00:28]} Na4 {[%emt 0:01:13]} 23. Bd4 {[%emt 0:02:39]} Rc7 {[%emt 0:03:50]} 24. Bf3 {[%emt 0:03:14]} (24. Bf1 $142) 24... Nc5 {[%emt 0:00:53]} ({Better is} 24... a6 $1 $17 25. e3 Bc6 26. Bxc6 Rxc6) 25. Nxc5 {[%emt 0:01:58]} Bxc5 {[%emt 0:00:07]} 26. Rd1 {[%emt 0:00:20]} Bxd4 {[%emt 0:03:31]} 27. cxd4 {[%emt 0:01:31]} Rc3 {[%emt 0:00:22]} 28. Qb2 {[%emt 0:07:35]} Rc2 {[%emt 0:00:19]} 29. Qb1 {[%emt 0:00:28]} Qc4 {[%emt 0:03:24]} (29... g6 $142) 30. Qb4 {[%emt 0:00:55]} Qxb4 {[%emt 0:01:01]} 31. axb4 {[%emt 0:00:03]} Rc4 {[%emt 0:00:46][%csl LRb4,LRd4]} 32. Rxa7 {[%emt 0:02:20]} Rxb4 {[%emt 0:00:39]} 33. d5 {[%emt 0:00:03]} exd5 {[%emt 0:00:59]} 34. Bxd5 {[%emt 0:00:20]} Rxd5 {[%emt 0:01:14]} 35. Rxd5 $11 {[%emt 0:00:17][%mdl 4096] Endgame Hoping for Re5. KRR-KRB} Rb1+ $1 {[%emt 0:00:07]} 36. Kg2 {[%emt 0:00:00]} Bc6 {[%emt 0:00:08]} 37. e4 {[%emt 0:00:37] Intending Rd8+ and mate.} Bxd5 {[%emt 0:00:06]} 38. exd5 {[%emt 0:00:02][%cal Ra7a8] KR-KR} g6 {[%emt 0:00:55]} 39. Kf3 {[%emt 0:00:39]} Kg7 {[%emt 0:00:39]} 40. Ke4 {[%emt 0:03:19]} Kf6 {[%emt 0:00:08]} 41. Rb7 {[%emt 0:02:47]} b4 {[%emt 0:00:23]} 42. Rb6+ {[%emt 0:00:21]} Ke7 {[%emt 0:00:06]} 43. Ke5 {[%emt 0:00:10]} Re1+ {[%emt 0:00:50]} 44. Kd4 {[%emt 0:00:04]} Rd1+ {[%emt 0:00:35]} 45. Kc5 {[%emt 0:00:42] Black must now prevent Rb7+.} Rc1+ {[%emt 0:00:30]} 46. Kd4 $1 {[%emt 0:00:03]} Rd1+ {[%emt 0:00:05]} 47. Ke4 {[%emt 0:01:02]} Re1+ {[%emt 0:00:53]} 48. Kf4 {[%emt 0:00:52]} Rd1 {[%emt 0:00:22]} 49. Rb7+ {[%emt 0:00:14]} Kf6 {[%emt 0:00:14]} 50. Ke4 {[%emt 0:00:15]} Rb1 {[%emt 0:01:44]} 51. Kd4 {[%emt 0:00:40]} b3 {[%emt 0:00:44]} 52. Kc5 {[%emt 0:02:00]} Rc1+ {[%emt 0:00:01]} (52... b2 $5 {[%cal Rb1c1]} 53. Kd6 (53. Rb6+ Kf5 $15) 53... g5 $11) 53. Kd6 {[%emt 0:00:09]} Rc2 $2 {[%emt 0:00:18][%mdl 8192]} (53... Rb1 $11 {and Black stays safe.}) 54. Rxb3 $18 {[%emt 0:00:44]} Rxf2 {[%emt 0:00:06]} 55. h4 {[%emt 0:00:21]} h5 {[%emt 0:00:13]} (55... Ra2 $142 56. Kc7 Rc2+ 57. Kd7 g5 58. Rb6+ Kf5) 56. Re3 {[%emt 0:00:14] Threatens to win with Rd3.} g5 {[%emt 0:03:08]} 57. hxg5+ {[%emt 0:01:27] White mates.} Kxg5 {[%emt 0:00:02]} 58. Ke7 {[%emt 0:00:05]} Rd2 {[%emt 0:01:08]} 59. Re5+ $1 {[%emt 0:00:55]} ({Not} 59. Kxf7 Kf5 $11) 59... f5 {[%emt 0:00:21] [#]} 60. Ke6 $1 {[%emt 0:00:34]} Kg4 {[%emt 0:00:38]} 61. Rxf5 {[%emt 0:00:09]} Rd3 {[%emt 0:06:48] [#]} 62. Kf6 $1 {[%emt 0:00:03]} Rd1 {[%emt 0:01:44]} 63. Rg5+ {[%emt 0:00:12]} Kf3 {[%emt 0:00:19]} 64. Ke7 {[%emt 0:01:19]} Re1+ {[%emt 0:00:42]} 65. Kd7 {[%emt 0:00:13]} Rd1 {[%emt 0:00:26]} 66. d6 {[%emt 0:00:14] Weighted Error Value: White=0.13 (very precise) /Black=0.31} 1-0

[Event "9th Floripa Open 2023"]
[Site "Florianopolis"]
[Date "2023.01.27"]
[Round "7.8"]
[White "Labussiere, Yago"]
[Black "Languidey, Simon Alejandro"]
[Result "1-0"]
[ECO "E05"]
[WhiteElo "2227"]
[BlackElo "2403"]
[Annotator "TA"]
[PlyCount "126"]
[EventDate "2023.01.23"]
[EventType "swiss"]
[EventCountry "BRA"]
[SourceTitle "playchess.com"]
[Source "ChessBase"]
[SourceQuality "1"]
[TimeControl "5400+30"]

{[%evp 20,126,9,12,31,18,49,43,31,22,54,17,17,19,26,22,37,18,42,29,68,65,69,33,53,53,55,53,53,52,71,60,75,58,125,119,97,73,98,107,104,103,104,111,105,95,103,66,75,68,67,72,70,72,81,67,66,51,77,77,77,77,77,74,77,58,70,70,74,74,75,75,75,75,75,75,75,75,75,75,75,66,75,70,70,8,34,34,34,0,0,0,34,34,34,34,5158,5488,4133,5006,5552,5462,5415,5361,5158,4645,4570,4133,1077]} 1. d4 {[%emt 0:00:15]} e6 {[%emt 0:00:32]} 2. c4 {[%emt 0:00:19]} d5 {[%emt 0:00:13]} 3. Nf3 {[%emt 0:00:08]} Be7 {[%emt 0:00:53]} 4. g3 {[%emt 0:00:45]} Nf6 {[%emt 0:01:01]} 5. Bg2 {[%emt 0:00:15]} O-O {[%emt 0:00:42]} 6. O-O {[%emt 0:00:12]} dxc4 {[%emt 0:03:39]} 7. Qc2 {[%emt 0:00:24]} a6 {[%emt 0:00:58]} 8. a4 {[%emt 0:00:22]} Nc6 {[%emt 0:00:50]} 9. Qxc4 {[%emt 0:02:33]} Qd5 {[%emt 0:00:51]} 10. Nbd2 {[%emt 0:11:27]} Rd8 {[%emt 0:00:50]} 11. e3 {[%emt 0:00:54][%cal Be2e3,Be3e4][%mdl 32]} Qh5 {[%emt 0:02:18] E05: Open Catalan: 5 Nf3 Be7.} 12. h3 {[%emt 0:02:39] 12.e4 is vanishing.} (12. e4 $5 {[%cal Rb2b3]}) 12... Nd5 {[%emt 0:01:26]} 13. e4 {[%emt 0:10:08]} Ndb4 {[%emt 0:05:58] White is slightly better.} 14. Nb3 {[%emt 0:07:38] [#]} b5 $146 {[%emt 0:42:45]} ({Predecessor:} 14... b6 15. Bd2 Bb7 16. Rfc1 Rac8 17. a5 bxa5 18. Qc3 Ba8 19. Qe3 Qb5 20. Bf1 Qb6 {1-0 Fraczek,D (2355)-Timko,V (2361) Danube tt5 email 2016 [6]}) 15. axb5 {[%emt 0:01:03]} (15. Qc3 $5 {[%cal Rg3g4]} bxa4 16. Rxa4 $14) 15... axb5 {[%emt 0:00:07]} 16. Qc3 {[%emt 0:00:39]} Rxa1 {[%emt 0:00:43]} 17. Nxa1 {[%emt 0:00:09]} Bb7 {[%emt 0:01:30]} 18. Be3 {[%emt 0:08:05]} f6 {[%emt 0:02:09]} 19. Nb3 {[%emt 0:05:21]} Na2 {[%emt 0:03:12]} 20. Qc2 {[%emt 0:01:16]} Nab4 {[%emt 0:00:47]} 21. Qb1 {[%emt 0:05:42]} Qe8 {[%emt 0:00:22]} 22. Rc1 {[%emt 0:00:26]} Na6 {[%emt 0:05:10]} 23. Ne1 {[%emt 0:03:09]} Ncb4 {[%emt 0:01:00]} 24. Nc2 {[%emt 0:02:03]} Nxc2 {[%emt 0:06:46]} 25. Qxc2 {[%emt 0:01:00]} Bb4 {[%emt 0:02:29] Prevents Na5} 26. Bd2 {[%emt 0:16:17] aiming for Bxb4.} Qe7 {[%emt 0:01:34]} (26... Bf8 $14) 27. Bxb4 $16 {[%emt 0:01:59]} Qxb4 {[%emt 0:00:11]} 28. Qc3 {[%emt 0:00:48]} f5 {[%emt 0:07:44]} 29. Qxb4 {[%emt 0:04:30]} Nxb4 {[%emt 0:00:09]} 30. exf5 {[%emt 0:00:21][%mdl 64] [#] Discovered Attack} Bxg2 {[%emt 0:00:13]} 31. Kxg2 {[%emt 0:00:03]} exf5 {[%emt 0:00:36]} 32. Rxc7 {[%emt 0:00:11][%mdl 4096] Endgame KRN-KRN} Nd3 {[%emt 0:00:44]} 33. Rc3 {[%emt 0:05:37]} Nxb2 {[%emt 0:00:57]} 34. Rc5 {[%emt 0:00:18][%csl LRb5,LRf5]} f4 {[%emt 0:04:10]} 35. Rxb5 {[%emt 0:02:48]} fxg3 {[%emt 0:00:46]} 36. fxg3 {[%emt 0:00:55]} Rf8 {[%emt 0:00:33]} 37. Re5 {[%emt 0:02:42]} Nc4 {[%emt 0:00:43]} 38. Re2 {[%emt 0:01:03]} Rb8 {[%emt 0:01:55]} 39. Nc5 {[%emt 0:00:16]} Rd8 {[%emt 0:00:41]} 40. Ne6 {[%emt 0:01:22]} Rd6 {[%emt 0:00:26] [#]} 41. Ng5 $1 {[%emt 0:00:47][%cal Re2e8]} g6 {[%emt 0:01:02]} 42. h4 {[%emt 0:03:28]} h6 {[%emt 0:00:56]} 43. Nf3 {[%emt 0:00:51]} Kf7 {[%emt 0:00:11]} 44. Kf2 {[%emt 0:00:24]} Ra6 {[%emt 0:01:00]} 45. Rc2 {[%emt 0:00:40]} Nd6 {[%emt 0:00:15]} 46. Ne5+ {[%emt 0:00:43]} Kf6 {[%emt 0:00:59]} 47. Ng4+ {[%emt 0:00:10]} Kf5 {[%emt 0:00:21]} 48. Nxh6+ {[%emt 0:00:27]} Ke4 {[%emt 0:00:22]} 49. Re2+ {[%emt 0:00:56]} Kxd4 {[%emt 0:00:11]} 50. Ng4 {[%emt 0:00:25]} Ra3 {[%emt 0:00:50]} 51. Rd2+ {[%emt 0:00:32]} Kc5 {[%emt 0:00:13] Threatens to win with ...Ne4+.} 52. Rc2+ {[%emt 0:00:14]} ({White should play} 52. Nf6 $14) 52... Kd5 {[%emt 0:00:15]} 53. Ne3+ {[%emt 0:00:22]} Ke5 {[%emt 0:00:55]} 54. Ng4+ {[%emt 0:00:57]} Kf5 {[%emt 0:00:43]} 55. Ne3+ {[%emt 0:00:07]} Ke5 $1 {[%emt 0:00:13]} 56. Re2 {[%emt 0:00:27]} Ne4+ {[%emt 0:00:50]} 57. Kf3 {[%emt 0:00:27]} Nf6 $2 {[%emt 0:00:31][%mdl 8192] Black cannot hold the game after this.} (57... Rc3 $14) 58. Kg2 $18 {[%emt 0:00:55] White is clearly winning.} Ra6 {[%emt 0:00:26]} 59. Ng4+ {[%emt 0:00:31][%mdl 64] Discovered Attack (Double check)} Kd5 {[%emt 0:00:34]} 60. Nxf6+ {[%emt 0:00:33]} Rxf6 {[%emt 0:00:10]} 61. Kh3 {[%emt 0:00:15]} Rf5 {[%emt 0:00:59]} 62. Kg4 {[%emt 0:00:08]} Kd6 {[%emt 0:00:23]} 63. Re8 {[%emt 0:00:32]} Kd7 {[%emt 0:01:08] Weighted Error Value: White=0.09 (flawless) /Black=0.10 (very precise)} 1-0

[Event "9th Floripa Open 2023"]
[Site "Florianopolis"]
[Date "2023.01.27"]
[Round "7.9"]
[White "Almiron, Antonio"]
[Black "Silva, Kaua Marques"]
[Result "1/2-1/2"]
[ECO "A13"]
[WhiteElo "2334"]
[BlackElo "2196"]
[Annotator "TA"]
[PlyCount "79"]
[EventDate "2023.01.23"]
[EventType "swiss"]
[EventCountry "BRA"]
[SourceTitle "playchess.com"]
[Source "ChessBase"]
[SourceQuality "1"]
[TimeControl "5400+30"]

{[%evp 17,79,55,52,26,35,39,40,22,44,45,62,75,77,73,74,62,66,85,75,32,99,47,40,28,93,77,160,145,147,145,114,135,162,144,127,68,61,0,0,0,0,0,42,11,12,5,12,8,8,0,0,0,21,0,0,0,0,0,0,0,0,3,170,-71]} 1. Nf3 {[%emt 0:00:02]} Nf6 {[%emt 0:07:17]} 2. c4 {[%emt 0:00:20]} e6 {[%emt 0:00:07]} 3. g3 {[%emt 0:00:05]} d5 {[%emt 0:01:07]} 4. Bg2 {[%emt 0:00:03]} dxc4 {[%emt 0:01:42]} 5. Qa4+ {[%emt 0:00:22]} Bd7 {[%emt 0:00:30]} 6. Qxc4 {[%emt 0:00:01]} Bc6 {[%emt 0:00:09]} 7. O-O {[%emt 0:00:04]} Nbd7 {[%emt 0:01:54]} 8. Qc2 {[%emt 0:06:46]} Be7 {[%emt 0:01:32]} 9. Nc3 {[%emt 0:00:33]} O-O {[%emt 0:06:40]} 10. d4 {[%emt 0:04:06] A13: English Opening: 1...e6.} b5 {[%emt 0:04:46]} 11. Bf4 {[%emt 0:15:51] [#]} Rc8 $146 {[%emt 0:10:10]} ({Predecessor:} 11... Bd6 12. Ne5 Bxg2 13. Kxg2 Nh5 14. Nxb5 Nxf4+ 15. gxf4 Bxe5 16. dxe5 Qh4 17. Qd3 Qxf4 18. Qxd7 {1-0 Schild,C (2289)-Pop,L (1882) Deizisau op 7th 2012 (1)}) 12. d5 {[%emt 0:21:11] White is slightly better.} Nxd5 {[%emt 0:12:52]} 13. Nd4 {[%emt 0:00:35][%csl LRb5,LRc6]} Ba8 {[%emt 0:08:50]} 14. Nxd5 {[%emt 0:00:50]} exd5 {[%emt 0:00:34]} 15. Nxb5 {[%emt 0:02:59]} Bc5 {[%emt 0:00:18] [#]} 16. b4 $1 {[%emt 0:02:13]} Bb6 {[%emt 0:03:05]} 17. Rad1 {[%emt 0:02:38] White has more active pieces. The black rooks are badly placed.} Qe7 {[%emt 0:04:20]} 18. a3 {[%emt 0:10:07]} (18. Nxc7 $2 {is the wrong capture.} Bxc7 19. Bxc7 Nf6 $19) 18... Ne5 {[%emt 0:10:36]} ({Black should play} 18... Rfe8 $14) 19. Nc3 {[%emt 0:06:18]} (19. Bxd5 $16 Bxd5 20. Rxd5) 19... c6 $14 {[%emt 0:03:08]} 20. e4 {[%emt 0:01:17][%cal Re4d5]} g5 {[%emt 0:03:15]} (20... d4 $11) 21. Bc1 {[%emt 0:00:47]} a5 {[%emt 0:01:34]} (21... d4 $142 22. Na4 c5) 22. Na4 $16 {[%emt 0:02:59]} ({Don't take} 22. exd5 $6 cxd5 23. Qb3 d4 $14) 22... Ba7 {[%emt 0:00:17]} 23. bxa5 {[%emt 0:02:08]} d4 {[%emt 0:01:14]} 24. Nb6 {[%emt 0:00:12]} Bxb6 {[%emt 0:00:36]} 25. axb6 {[%emt 0:00:00] f4 would be deadly.} c5 {[%emt 0:00:08]} 26. f4 {[%emt 0:00:11]} ({Better is} 26. a4 $16) 26... Nd7 $1 $14 {[%emt 0:01:25]} 27. e5 {[%emt 0:03:33]} (27. a4 $14) 27... Bxg2 $11 {[%emt 0:01:10]} 28. Qxg2 {[%emt 0:00:03]} Nxb6 {[%emt 0:00:10]} 29. Rde1 {[%emt 0:00:24]} gxf4 {[%emt 0:02:37]} 30. Bxf4 {[%emt 0:00:01]} Qe6 {[%emt 0:02:56] Prevents Bh6.} 31. Bg5 {[%emt 0:01:08] And now Rf6 would win.} Nd7 {[%emt 0:00:39] Dodges Rf6} 32. Bf6 {[%emt 0:01:11] With the idea Qe4.} Rfe8 {[%emt 0:01:40] aiming for ...Nxf6.} 33. Qf3 {[%emt 0:18:02]} Nxf6 {[%emt 0:03:01]} 34. exf6 {[%emt 0:00:00]} Qh3 {[%emt 0:00:03]} 35. Qd5 $40 {[%emt 0:00:00][%mdl 128] Intending Qg5+ and mate. White has some attack.} (35. a4 $5 {[%cal Re1e8]} Qd7 36. Rxe8+ Rxe8 37. Qh5 $14) 35... h6 {[%emt 0:00:15] Against Qg5+} 36. Re7 {[%emt 0:00:00] Chess con chili.} Rxe7 {[%emt 0:01:47][%mdl 64] Remove Defender} 37. fxe7 {[%emt 0:00:00]} Qe6 {[%emt 0:00:05]} 38. Qd8+ {[%emt 0:00:00]} Kg7 {[%emt 0:00:04]} 39. h4 {[%emt 0:03:00]} f5 $2 {[%emt 0:07:27] [#]} (39... d3 $1 $11 {and Black has nothing to worry.}) 40. Rxf5 $2 {[%emt 0:00:30] Weighted Error Value: White=0.14 (very precise) /Black=0.16 (very precise)} 1/2-1/2